fUST/lending_fUST_20240424
["ID","MTS","AMOUNT","RATE_DAILY","PERIOD"]
[323334586,1713903062183,-500.0,0.00020273,2]
[323334587,1713903062192,-1478.64,0.00020273,2]
[323334588,1713903062201,-500.0,0.00020273,2]
[323334589,1713903062209,-556.77,0.00020273,2]
[323334590,1713903062218,-500.0,0.00020273,2]
[323334591,1713903062227,-1145.16,0.00020273,2]
[323334592,1713903062236,-243.54433224,0.00020273,2]
[323334593,1713903062245,-1530.09,0.00020273,2]
[323334594,1713903062253,-500.0,0.00020273,2]
[323334595,1713903062262,-500.0,0.00020273,2]
[323334596,1713903062271,-500.0,0.00020273,2]
[323334597,1713903062280,-500.0,0.00020273,2]
[323334598,1713903062288,-1259.3,0.00020273,2]
[323334599,1713903062297,-500.0,0.00020273,2]
[323334600,1713903062306,-500.0,0.00020273,2]
[323334601,1713903062315,-275.39330332,0.00020273,2]
[323334602,1713903062324,-2317.22,0.00020273,2]
[323334603,1713903062333,-2095.97,0.00020273,2]
[323334604,1713903062341,-500.0,0.00020273,2]
[323334605,1713903062350,-500.0,0.00020273,2]
[323334606,1713903062359,-603.15,0.00020273,2]
[323334607,1713903062368,-920.17,0.00020273,2]
[323334608,1713903062377,-500.0,0.00020273,2]
[323334609,1713903062387,-500.0,0.00020273,2]
[323334610,1713903062396,-752.94,0.00020273,2]
[323334611,1713903062405,-10680.25,0.00020273,2]
[323334612,1713903062414,-172.98940092,0.00020273,2]
[323334613,1713903062422,-1171.0,0.00020273,2]
[323334614,1713903062431,-656.53,0.00020273,2]
[323334615,1713903062440,-734.96,0.00020273,2]
[323334616,1713903062449,-500.0,0.00020273,2]
[323334617,1713903062458,-1233.2,0.00020273,2]
[323334618,1713903062467,-720.3,0.00020273,2]
[323334619,1713903062475,-500.0,0.00020273,2]
[323334620,1713903062484,-500.0,0.00020273,2]
[323334621,1713903062493,-3840.5,0.00020273,2]
[323334622,1713903062503,-500.0,0.00020273,2]
[323334623,1713903062511,-568.42,0.00020273,2]
[323334624,1713903062521,-7817.81,0.00020273,2]
[323334625,1713903062529,-500.0,0.00020273,2]
[323334626,1713903062538,-500.0,0.00020273,2]
[323334627,1713903062547,-3302.35,0.00020273,2]
[323334628,1713903062556,-944.5,0.00020273,2]
[323334629,1713903062565,-500.0,0.00020273,2]
[323334630,1713903062573,-7165.39,0.00020273,2]
[323334631,1713903062582,-500.0,0.00020273,2]
[323334632,1713903062591,-500.0,0.00020273,2]
[323334633,1713903062600,-4042.28,0.00020273,2]
[323334634,1713903062610,-500.0,0.00020273,2]
[323334635,1713903062618,-500.0,0.00020273,2]
[323334636,1713903062627,-1454.5,0.00020273,2]
[323334637,1713903062636,-5355.13,0.00020273,2]
[323334638,1713903062645,-500.0,0.00020273,2]
[323334639,1713903062654,-500.0,0.00020273,2]
[323334640,1713903062663,-500.0,0.00020273,2]
[323334641,1713903062672,-628.51,0.00020273,2]
[323334642,1713903062681,-615.59,0.00020273,2]
[323334643,1713903062690,-500.0,0.00020273,2]
[323334644,1713903062700,-1677.46,0.00020273,2]
[323334645,1713903062708,-500.0,0.00020273,2]
[323334646,1713903062717,-500.0,0.00020273,2]
[323334647,1713903062727,-1703.27,0.00020273,2]
[323334648,1713903062736,-1449.82,0.00020273,2]
[323334649,1713903062745,-959.96,0.00020273,2]
[323334650,1713903062754,-500.0,0.00020273,2]
[323334651,1713903062763,-584.38,0.00020273,2]
[323334652,1713903062773,-579.91,0.00020273,2]
[323334653,1713903062781,-939.14,0.00020273,2]
[323334654,1713903062791,-500.0,0.00020273,2]
[323334655,1713903062800,-500.0,0.00020273,2]
[323334656,1713903062809,-500.0,0.00020273,2]
[323334657,1713903062818,-500.0,0.00020273,2]
[323334658,1713903062827,-2532.3,0.00020273,2]
[323334659,1713903062836,-2619.5,0.00020273,2]
[323334660,1713903062846,-500.0,0.00020273,2]
[323334661,1713903062854,-500.0,0.00020273,2]
[323334662,1713903062868,-825.41,0.00020273,2]
[323334663,1713903062877,-504.08988695,0.00020273,2]
[323334664,1713903062886,-500.0,0.00020273,2]
[323334665,1713903062896,-500.0,0.00020273,2]
[323334666,1713903062906,-908.32,0.00020273,2]
[323334667,1713903062916,-22773.5,0.00020273,2]
[323334668,1713903062925,-500.0,0.00020273,2]
[323334669,1713903062935,-1040.2,0.00020273,2]
[323334670,1713903062944,-543.57,0.00020273,2]
[323334671,1713903062954,-2118.19,0.00020273,2]
[323334672,1713903062963,-688.87,0.00020273,2]
[323334673,1713903062973,-710.16,0.00020273,2]
[323334674,1713903062983,-7328.9,0.00020273,2]
[323334675,1713903062993,-1966.61,0.00020273,2]
[323334676,1713903063002,-6812.28,0.00020273,2]
[323334677,1713903063012,-522.87,0.00020273,2]
[323334678,1713903063021,-500.0,0.00020273,2]
[323334679,1713903063031,-168.64645156,0.00020273,2]
[323334680,1713903063040,-11311.4,0.00020273,2]
[323334681,1713903063050,-500.0,0.00020273,2]
[323334682,1713903063060,-1756.23,0.00020273,2]
[323334683,1713903063069,-500.0,0.00020273,2]
[323334684,1713903063078,-10737.74,0.00020273,2]
[323334685,1713903063087,-500.0,0.00020273,2]
[323334686,1713903063096,-500.0,0.00020273,2]
[323334687,1713903063105,-1135.98,0.00020273,2]
[323334688,1713903063118,-1936.76,0.00020273,2]
[323334689,1713903063232,-868.15,0.00020273,2]
[323334690,1713903063241,-500.0,0.00020273,2]
[323334691,1713903063251,-7805.51,0.00020273,2]
[323334692,1713903063260,-500.0,0.00020273,2]
[323334693,1713903063270,-2000.0,0.000203,2]
[323334694,1713903063279,-2000.0,0.000203,2]
[323334695,1713903063288,-500.0,0.00020342,7]
[323334696,1713903063297,-500.0,0.00020342,7]
[323334697,1713903063306,-500.0,0.00020342,7]
[323334698,1713903063315,-500.0,0.00020342,7]
[323334699,1713903063324,-268.57,0.00020342,7]
[323334700,1713903063333,-184.125163,0.00020547,2]
[323334701,1713903063342,-184.125163,0.00020547,2]
[323334702,1713903063351,-184.125163,0.00020547,2]
[323334703,1713903063363,-184.125163,0.00020547,2]
[323334704,1713903063372,-151.0,0.00020547,2]
[323334705,1713903063381,-984.57,0.00020547,2]
[323334706,1713903063391,-572.31,0.00020547,2]
[323334707,1713903063400,-697.84,0.00020547,2]
[323334708,1713903063409,-615.15,0.00020547,2]
[323334709,1713903063418,-500.0,0.00020547,2]
[323334710,1713903063427,-169.37155114,0.00020547,2]
[323334711,1713903063436,-1887.52,0.00020547,2]
[323334712,1713903063445,-517.12,0.00020547,2]
[323334713,1713903063454,-625.12,0.00020547,2]
[323334714,1713903063463,-500.0,0.00020547,2]
[323334715,1713903063473,-500.0,0.00020547,2]
[323334716,1713903063482,-500.0,0.00020547,2]
[323334717,1713903063491,-427.16289909,0.00020547,2]
[323334718,1713903063500,-1091.25,0.00020547,2]
[323334719,1713903063510,-500.0,0.00020547,2]
[323334720,1713903063520,-500.0,0.00020547,2]
[323334721,1713903063529,-500.0,0.00020547,2]
[323334722,1713903063539,-551.38,0.00020547,2]
[323334723,1713903063548,-500.0,0.00020547,2]
[323334724,1713903063558,-576.81,0.00020547,2]
[323334725,1713903063567,-500.0,0.00020547,2]
[323334726,1713903063576,-500.0,0.00020547,2]
[323334727,1713903063585,-526.38,0.00020547,2]
[323334728,1713903063595,-500.0,0.00020547,2]
[323334729,1713903063604,-500.0,0.00020547,2]
[323334730,1713903063615,-500.0,0.00020547,2]
[323334731,1713903063624,-151.0,0.00020547,2]
[323334732,1713903063632,-500.0,0.00020547,2]
[323334733,1713903063641,-823.300687,0.00020547,2]
[323334734,1713903063650,-500.0,0.00020547,2]
[323334735,1713903063659,-500.0,0.00020547,2]
[323334736,1713903063668,-823.300686,0.00020547,2]
[323334737,1713903063677,-500.0,0.00020547,2]
[323334738,1713903063686,-500.0,0.00020547,2]
[323334739,1713903063695,-500.0,0.00020547,2]
[323334740,1713903063705,-2218.9,0.00020547,2]
[323334741,1713903063714,-500.0,0.00020547,2]
[323334742,1713903063724,-500.0,0.00020547,2]
[323334743,1713903063733,-417.73506971,0.00020547,2]
[323334744,1713903063743,-1536.78,0.00020547,2]
[323334745,1713903063752,-500.0,0.00020547,2]
[323334746,1713903063762,-1128.31,0.00020547,2]
[323334747,1713903063771,-500.0,0.00020547,2]
[323334748,1713903063780,-500.0,0.00020547,2]
[323334749,1713903063789,-1230.65,0.00020547,2]
[323334750,1713903063799,-908.18,0.00020547,2]
[323334751,1713903063808,-500.0,0.00020547,2]
[323334752,1713903063817,-500.0,0.00020547,2]
[323334753,1713903063827,-500.0,0.00020547,2]
[323334754,1713903063836,-898.37,0.00020547,2]
[323334755,1713903063845,-1102.27,0.00020547,2]
[323334756,1713903063855,-1046.8,0.00020547,2]
[323334757,1713903063866,-500.0,0.00020547,2]
[323334758,1713903063875,-500.0,0.00020547,2]
[323334759,1713903063884,-500.0,0.00020547,2]
[323334760,1713903063894,-1358.76,0.00020547,2]
[323334761,1713903063903,-928.75,0.00020547,2]
[323334762,1713903063912,-295.48177546,0.00020547,2]
[323334763,1713903063921,-500.0,0.00020547,2]
[323334764,1713903063930,-500.0,0.00020547,2]
[323334765,1713903063939,-500.0,0.00020547,2]
[323334766,1713903063949,-670.19,0.00020547,2]
[323334767,1713903063958,-500.0,0.00020547,2]
[323334768,1713903063968,-500.0,0.00020547,2]
[323334769,1713903063979,-1046.91,0.00020547,2]
[323334770,1713903063990,-561.05,0.00020547,2]
[323334771,1713903063999,-500.0,0.00020547,2]
[323334772,1713903064009,-545.02829371,0.00020547,2]
[323334773,1713903064018,-504.73039003,0.00020547,2]
[323334774,1713903064028,-779.92,0.00020547,2]
[323334775,1713903064037,-1609.44,0.00020547,2]
[323334776,1713903064046,-872.16,0.00020547,2]
[323334777,1713903064055,-500.0,0.00020547,2]
[323334778,1713903064067,-500.0,0.00020547,2]
[323334779,1713903064076,-551.7,0.00020547,2]
[323334780,1713903064086,-500.0,0.00020547,2]
[323334781,1713903064095,-500.0,0.00020547,2]
[323334782,1713903064104,-500.0,0.00020547,2]
[323334783,1713903064116,-500.0,0.00020547,2]
[323334784,1713903064125,-500.0,0.00020547,2]
[323334785,1713903064134,-500.0,0.00020547,2]
[323334786,1713903064144,-602.35,0.00020547,2]
[323334787,1713903064153,-960.05,0.00020547,2]
[323334788,1713903064162,-483.12347491,0.00020547,2]
[323334789,1713903064171,-3306.34,0.00020547,2]
[323334790,1713903064181,-500.0,0.00020547,2]
[323334791,1713903064190,-500.0,0.00020547,2]
[323334792,1713903064199,-500.0,0.00020547,2]
[323334793,1713903064208,-500.0,0.00020547,2]
[323334794,1713903064217,-770.49,0.00020547,2]
[323334795,1713903064226,-1506.91,0.00020547,2]
[323334796,1713903064235,-864.47,0.00020547,2]
[323334797,1713903064244,-1108.17,0.00020547,2]
[323334798,1713903064253,-500.0,0.00020547,2]
[323334799,1713903064262,-2412.6,0.00020547,2]
[323334800,1713903064271,-500.0,0.00020547,2]
[323334801,1713903064281,-1562.28,0.00020547,2]
[323334802,1713903064290,-578.18,0.00020547,2]
[323334803,1713903064300,-500.0,0.00020547,2]
[323334804,1713903064309,-500.0,0.00020547,2]
[323334805,1713903064318,-982.81,0.00020547,2]
[323334806,1713903064327,-735.84,0.00020547,2]
[323334807,1713903064337,-2227.36,0.00020547,2]
[323334808,1713903064346,-1054.07,0.00020547,2]
[323334809,1713903064355,-1835.9,0.00020547,2]
[323334810,1713903064365,-1881.45,0.00020547,2]
[323334811,1713903064374,-727.37,0.00020547,2]
[323334812,1713903064383,-500.0,0.00020547,2]
[323334813,1713903064393,-500.0,0.00020547,2]
[323334814,1713903064401,-500.0,0.00020547,2]
[323334815,1713903064410,-500.0,0.00020547,2]
[323334816,1713903064420,-500.0,0.00020547,2]
[323334817,1713903064429,-500.0,0.00020547,2]
[323334818,1713903064438,-579.55,0.00020547,2]
[323334819,1713903064448,-1701.25,0.00020547,2]
[323334820,1713903064457,-1322.53,0.00020547,2]
[323334821,1713903064466,-992.14,0.00020547,2]
[323334822,1713903064475,-500.0,0.00020547,2]
[323334823,1713903064484,-287.98270731,0.00020547,2]
[323334824,1713903064493,-500.0,0.00020547,2]
[323334825,1713903064502,-871.49,0.00020547,2]
[323334826,1713903064511,-500.0,0.00020547,2]
[323334827,1713903064520,-500.0,0.00020547,2]
[323334828,1713903064529,-500.0,0.00020547,2]
[323334829,1713903064538,-500.0,0.00020547,2]
[323334830,1713903064547,-728.0,0.00020547,2]
[323334831,1713903064557,-500.0,0.00020547,2]
[323334832,1713903064566,-1478.64,0.00020547,2]
[323334833,1713903064575,-500.0,0.00020547,2]
[323334834,1713903064584,-556.77,0.00020547,2]
[323334835,1713903064593,-485.33448319,0.00020547,2]
[323334836,1713903064601,-1145.16,0.00020547,2]
[323334837,1713903064612,-1530.09,0.00020547,2]
[323334838,1713903064620,-499.9984897,0.00020547,2]
[323334839,1713903064629,-500.0,0.00020547,2]
[323334840,1713903064638,-500.0,0.00020547,2]
[323334841,1713903064647,-500.0,0.00020547,2]
[323334842,1713903064656,-1259.3,0.00020547,2]
[323334843,1713903064665,-500.0,0.00020547,2]
[323334844,1713903064674,-500.0,0.00020547,2]
[323334845,1713903064683,-2317.22,0.00020547,2]
[323334846,1713903064692,-2095.97,0.00020547,2]
[323334847,1713903064701,-500.0,0.00020547,2]
[323334848,1713903064711,-500.0,0.00020547,2]
[323334849,1713903064720,-603.15,0.00020547,2]
[323334850,1713903064729,-920.17,0.00020547,2]
[323334851,1713903064739,-500.0,0.00020547,2]
[323334852,1713903064748,-500.0,0.00020547,2]
[323334853,1713903064757,-752.94,0.00020547,2]
[323334854,1713903064766,-10680.25,0.00020547,2]
[323334855,1713903064776,-1171.0,0.00020547,2]
[323334856,1713903064785,-656.53,0.00020547,2]
[323334857,1713903064795,-734.96,0.00020547,2]
[323334858,1713903064804,-500.0,0.00020547,2]
[323334859,1713903064813,-1233.2,0.00020547,2]
[323334860,1713903064822,-720.3,0.00020547,2]
[323334861,1713903064831,-500.0,0.00020547,2]
[323334862,1713903064840,-500.0,0.00020547,2]
[323334863,1713903064850,-3840.5,0.00020547,2]
[323334864,1713903064860,-500.0,0.00020547,2]
[323334865,1713903064869,-568.42,0.00020547,2]
[323334866,1713903064878,-7817.81,0.00020547,2]
[323334867,1713903064887,-500.0,0.00020547,2]
[323334868,1713903064897,-500.0,0.00020547,2]
[323334869,1713903064906,-3302.35,0.00020547,2]
[323334870,1713903064915,-944.5,0.00020547,2]
[323334871,1713903064924,-7165.39,0.00020547,2]
[323334872,1713903064933,-500.0,0.00020547,2]
[323334873,1713903064943,-500.0,0.00020547,2]
[323334874,1713903064952,-4042.28,0.00020547,2]
[323334875,1713903064961,-500.0,0.00020547,2]
[323334876,1713903064971,-500.0,0.00020547,2]
[323334877,1713903064982,-1454.5,0.00020547,2]
[323334878,1713903064992,-5355.13,0.00020547,2]
[323334879,1713903065001,-500.0,0.00020547,2]
[323334880,1713903065011,-500.0,0.00020547,2]
[323334881,1713903065020,-500.0,0.00020547,2]
[323334882,1713903065030,-628.51,0.00020547,2]
[323334883,1713903065039,-615.59,0.00020547,2]
[323334884,1713903065048,-500.0,0.00020547,2]
[323334885,1713903065058,-1677.46,0.00020547,2]
[323334886,1713903065067,-621.46226607,0.00020547,2]
[323334887,1713903065076,-500.0,0.00020547,2]
[323334888,1713903065087,-1703.27,0.00020547,2]
[323334889,1713903065096,-1449.82,0.00020547,2]
[323334890,1713903065106,-959.96,0.00020547,2]
[323334891,1713903065116,-500.0,0.00020547,2]
[323334892,1713903065126,-584.38,0.00020547,2]
[323334893,1713903065135,-579.91,0.00020547,2]
[323334894,1713903065144,-939.14,0.00020547,2]
[323334895,1713903065153,-500.0,0.00020547,2]
[323334896,1713903065163,-500.0,0.00020547,2]
[323334897,1713903065173,-500.0,0.00020547,2]
[323334898,1713903065182,-500.0,0.00020547,2]
[323334899,1713903065192,-2532.3,0.00020547,2]
[323334900,1713903065201,-2619.5,0.00020547,2]
[323334901,1713903065209,-500.0,0.00020547,2]
[323334902,1713903065218,-500.0,0.00020547,2]
[323334903,1713903065331,-825.41,0.00020547,2]
[323334904,1713903065341,-500.0,0.00020547,2]
[323334905,1713903065351,-500.0,0.00020547,2]
[323334906,1713903065361,-908.32,0.00020547,2]
[323334907,1713903065370,-22773.5,0.00020547,2]
[323334908,1713903065380,-500.0,0.00020547,2]
[323334909,1713903065390,-1040.2,0.00020547,2]
[323334910,1713903065399,-543.57,0.00020547,2]
[323334911,1713903065409,-2118.19,0.00020547,2]
[323334912,1713903065418,-688.87,0.00020547,2]
[323334913,1713903065427,-710.16,0.00020547,2]
[323334914,1713903065436,-7328.9,0.00020547,2]
[323334915,1713903065445,-1966.61,0.00020547,2]
[323334916,1713903065455,-6812.28,0.00020547,2]
[323334917,1713903065464,-522.87,0.00020547,2]
[323334918,1713903065473,-500.0,0.00020547,2]
[323334919,1713903065482,-11311.4,0.00020547,2]
[323334920,1713903065491,-500.0,0.00020547,2]
[323334921,1713903065501,-1756.23,0.00020547,2]
[323334922,1713903065510,-514.42969821,0.00020547,2]
[323334923,1713903065520,-10737.74,0.00020547,2]
[323334924,1713903065529,-500.0,0.00020547,2]
[323334925,1713903065538,-1135.98,0.00020547,2]
[323334926,1713903065546,-1936.76,0.00020547,2]
[323334927,1713903065555,-500.0,0.00020547,2]
[323334928,1713903065565,-868.15,0.00020547,2]
[323334929,1713903065574,-7805.51,0.00020547,2]
[323334930,1713903065583,-500.0,0.00020547,2]
[323334931,1713903065593,-203.583665,0.00020548,2]
[323334932,1713903065602,-203.583665,0.00020548,2]
[323334933,1713903065613,-2881.819701,0.00020548,2]
[323334934,1713903065622,-268.3049176,0.00020554,2]
[323334935,1713903065631,-168.7343957,0.00020554,2]
[323334936,1713903065640,-184.125163,0.00020821,2]
[323334937,1713903065649,-184.125163,0.00020821,2]
[323334938,1713903065659,-184.125163,0.00020821,2]
[323334939,1713903065668,-184.125165,0.00020821,2]
[323334940,1713903065678,-296.069753,0.00020821,2]
[323334941,1713903065688,-984.57,0.00020821,2]
[323334942,1713903065697,-572.31,0.00020821,2]
[323334943,1713903065707,-697.84,0.00020821,2]
[323334944,1713903065716,-615.15,0.00020821,2]
[323334945,1713903065725,-500.0,0.00020821,2]
[323334946,1713903065735,-1887.52,0.00020821,2]
[323334947,1713903065745,-517.12,0.00020821,2]
[323334948,1713903065754,-625.12,0.00020821,2]
[323334949,1713903065764,-500.0,0.00020821,2]
[323334950,1713903065774,-500.0,0.00020821,2]
[323334951,1713903065784,-500.0,0.00020821,2]
[323334952,1713903065794,-1091.25,0.00020821,2]
[323334953,1713903065804,-500.0,0.00020821,2]
[323334954,1713903065814,-500.0,0.00020821,2]
[323334955,1713903065823,-500.0,0.00020821,2]
[323334956,1713903065833,-551.38,0.00020821,2]
[323334957,1713903065843,-500.0,0.00020821,2]
[323334958,1713903065852,-576.81,0.00020821,2]
[323334959,1713903065864,-500.0,0.00020821,2]
[323334960,1713903065873,-501.15572603,0.00020821,2]
[323334961,1713903065883,-526.38,0.00020821,2]
[323334962,1713903065893,-500.0,0.00020821,2]
[323334963,1713903065902,-500.0,0.00020821,2]
[323334964,1713903065912,-500.0,0.00020821,2]
[323334965,1713903065922,-500.0,0.00020821,2]
[323334966,1713903065931,-500.0,0.00020821,2]
[323334967,1713903065941,-500.0,0.00020821,2]
[323334968,1713903065950,-500.0,0.00020821,2]
[323334969,1713903065960,-500.0,0.00020821,2]
[323334970,1713903065969,-500.0,0.00020821,2]
[323334971,1713903065980,-2218.9,0.00020821,2]
[323334972,1713903065991,-500.0,0.00020821,2]
[323334973,1713903066000,-1536.78,0.00020821,2]
[323334974,1713903066010,-500.0,0.00020821,2]
[323334975,1713903066019,-1128.31,0.00020821,2]
[323334976,1713903066029,-500.0,0.00020821,2]
[323334977,1713903066038,-500.0,0.00020821,2]
[323334978,1713903066047,-1230.65,0.00020821,2]
[323334979,1713903066057,-908.18,0.00020821,2]
[323334980,1713903066068,-500.0,0.00020821,2]
[323334981,1713903066078,-500.0,0.00020821,2]
[323334982,1713903066087,-898.37,0.00020821,2]
[323334983,1713903066096,-1102.27,0.00020821,2]
[323334984,1713903066106,-1046.8,0.00020821,2]
[323334985,1713903066117,-500.0,0.00020821,2]
[323334986,1713903066126,-500.0,0.00020821,2]
[323334987,1713903066135,-500.0,0.00020821,2]
[323334988,1713903066144,-1358.76,0.00020821,2]
[323334989,1713903066154,-928.75,0.00020821,2]
[323334990,1713903066164,-500.0,0.00020821,2]
[323334991,1713903066173,-500.0,0.00020821,2]
[323334992,1713903066182,-500.0,0.00020821,2]
[323334993,1713903066191,-670.19,0.00020821,2]
[323334994,1713903066200,-500.0,0.00020821,2]
[323334995,1713903066210,-500.0,0.00020821,2]
[323334996,1713903066219,-1046.91,0.00020821,2]
[323334997,1713903066229,-561.05,0.00020821,2]
[323334998,1713903066238,-500.0,0.00020821,2]
[323334999,1713903066248,-779.92,0.00020821,2]
[323335000,1713903066257,-1609.44,0.00020821,2]
[323335001,1713903066266,-872.16,0.00020821,2]
[323335002,1713903066276,-500.0,0.00020821,2]
[323335003,1713903066285,-500.0,0.00020821,2]
[323335004,1713903066295,-551.7,0.00020821,2]
[323335005,1713903066304,-500.0,0.00020821,2]
[323335006,1713903066314,-500.0,0.00020821,2]
[323335007,1713903066323,-500.0,0.00020821,2]
[323335008,1713903066332,-500.0,0.00020821,2]
[323335009,1713903066342,-500.0,0.00020821,2]
[323335010,1713903066351,-511.85838127,0.00020821,2]
[323335011,1713903066362,-602.35,0.00020821,2]
[323335012,1713903066373,-960.05,0.00020821,2]
[323335013,1713903066409,-3306.34,0.00020821,2]
[323335014,1713903066419,-500.0,0.00020821,2]
[323335015,1713903066428,-500.0,0.00020821,2]
[323335016,1713903066437,-500.0,0.00020821,2]
[323335017,1713903066447,-500.0,0.00020821,2]
[323335018,1713903066456,-770.49,0.00020821,2]
[323335019,1713903066466,-1506.91,0.00020821,2]
[323335020,1713903066475,-281.9406538,0.00020821,2]
[323335021,1713903067488,320.56386443,0.00011999,2]
[323335022,1713903067834,575.26,0.00011999,2]
[323335023,1713903076070,305.66512598,0.00011895,2]
[323335024,1713903143056,16612.73015886,0.00011895,2]
[323335025,1713903217403,4933.66577357,0.00011915,2]
[323335026,1713903380866,197.91829664,0.0001191,2]
[323335027,1713903397927,1955.3744156,0.00011008,2]
[323335028,1713903418113,673.55445774,0.00012,2]
[323335029,1713903418388,154.82968734,0.00012,2]
[323335030,1713903418431,526.34381075,0.00012,2]
[323335031,1713903418694,448.56571186,0.00012,2]
[323335032,1713903418726,521.52942585,0.00012,2]
[323335033,1713903420956,173.22582113,0.00012,2]
[323335034,1713903424742,154.82968734,0.00012,2]
[323335035,1713903424799,203.84630574,0.00012,2]
[323335036,1713903424939,157.76351589,0.00012,2]
[323335037,1713903428040,308.49906714,0.00012,2]
[323335038,1713903428553,883.78313678,0.00012,2]
[323335039,1713903430061,7866.94121737,0.00012,2]
[323335040,1713903432194,193.60170872,0.00012,2]
[323335041,1713903442435,443.84153788,0.00012,2]
[323335042,1713903442693,203.84630574,0.00012,2]
[323335043,1713903443564,459.70738052,0.00012,2]
[323335044,1713903444483,1311.74164115,0.00012,2]
[323335045,1713903444561,883.78313678,0.00012,2]
[323335046,1713903444734,1678.29832492,0.00012,2]
[323335047,1713903445289,1090.52068603,0.00012,2]
[323335048,1713903445455,539.84959505,0.00012,2]
[323335049,1713903446083,7866.94121737,0.00012,2]
[323335050,1713903449362,212.06825711,0.00012,2]
[323335051,1713903450039,308.49906714,0.00012,2]
[323335052,1713903451047,154.82968734,0.00012,2]
[323335053,1713903451969,283.38557575,0.00012,2]
[323335054,1713903452178,564.51895848,0.00012,2]
[323335055,1713903452739,187.2839657,0.00012,2]
[323335056,1713903452776,207.89139513,0.00012,2]
[323335057,1713903452824,1620.29564358,0.00012,2]
[323335058,1713903453344,3533.14627737,0.00012,2]
[323335060,1713903455976,204.76586331,0.00012,2]
[323335061,1713903458228,2623.97456043,0.00012,2]
[323335062,1713903459278,1090.52068603,0.00012,2]
[323335063,1713903459387,1490.32391025,0.00012,2]
[323335064,1713903459456,340.66624313,0.00012,2]
[323335065,1713903459576,333.14847643,0.00012,2]
[323335066,1713903460063,2587.76784421,0.00012,2]
[323335067,1713903460696,172.76058636,0.00012,2]
[323335068,1713903460753,1678.29832492,0.00012,2]
[323335069,1713903464496,1224.12376873,0.00012,2]
[323335070,1713903466578,883.78313678,0.00012,2]
[323335071,1713903466742,187.2839657,0.00012,2]
[323335072,1713903467036,154.82968734,0.00012,2]
[323335073,1713903467354,212.06825711,0.00012,2]
[323335074,1713903468138,7866.94121737,0.00012,2]
[323335075,1713903468774,329.63489341,0.00012,2]
[323335076,1713903469403,623.77275616,0.00012,2]
[323335077,1713903469510,3533.14627737,0.00012,2]
[323335078,1713903469962,172.87372314,0.00012,2]
[323335079,1713903470547,184.6691882,0.00012,2]
[323335080,1713903470786,743.16851655,0.00012,2]
[323335081,1713903471877,623.77275616,0.00012,2]
[323335082,1713903474177,562.92020653,0.00012,2]
[323335083,1713903474219,2623.97456043,0.00012,2]
[323335084,1713903474736,1076.30325892,0.00012,2]
[323335085,1713903475387,1221.6629632,0.00012,2]
[323335086,1713903477279,1090.52068603,0.00012,2]